fUST/lending_fUST_20251207
["ID","MTS","AMOUNT","RATE_DAILY","PERIOD"]
[396541347,1765043465985,-500.0,8.767e-05,2]
[396541348,1765043465994,-500.0,8.767e-05,2]
[396541349,1765043466003,-1053.71,8.767e-05,2]
[396541350,1765043466013,-500.0,8.767e-05,2]
[396541351,1765043466022,-791.22,8.767e-05,2]
[396541352,1765043466031,-2586.42,8.767e-05,2]
[396541353,1765043466040,-500.0,8.767e-05,2]
[396541354,1765043466049,-1376.77,8.767e-05,2]
[396541355,1765043466058,-500.0,8.767e-05,2]
[396541356,1765043466068,-500.0,8.767e-05,2]
[396541357,1765043466077,-500.0,8.767e-05,2]
[396541358,1765043466086,-1683.77,8.767e-05,2]
[396541359,1765043466096,-500.0,8.767e-05,2]
[396541360,1765043466105,-1071.78,8.767e-05,2]
[396541361,1765043466115,-500.0,8.767e-05,2]
[396541362,1765043466124,-500.0,8.767e-05,2]
[396541363,1765043466133,-1182.51,8.767e-05,2]
[396541364,1765043466145,-614.27,8.767e-05,2]
[396541365,1765043466156,-500.0,8.767e-05,2]
[396541366,1765043466165,-500.0,8.767e-05,2]
[396541367,1765043466175,-500.0,8.767e-05,2]
[396541368,1765043466184,-1262.1,8.767e-05,2]
[396541369,1765043466193,-561.56,8.767e-05,2]
[396541370,1765043466203,-500.0,8.767e-05,2]
[396541371,1765043466212,-500.0,8.767e-05,2]
[396541372,1765043466223,-500.0,8.767e-05,2]
[396541373,1765043466233,-500.0,8.767e-05,2]
[396541374,1765043466249,-500.0,8.767e-05,2]
[396541375,1765043466268,-500.0,8.767e-05,2]
[396541376,1765043466277,-742.31,8.767e-05,2]
[396541377,1765043466287,-2940.75,8.767e-05,2]
[396541378,1765043466297,-666.27,8.767e-05,2]
[396541379,1765043466305,-500.0,8.767e-05,2]
[396541380,1765043466315,-1296.67,8.767e-05,2]
[396541381,1765043466324,-500.0,8.767e-05,2]
[396541382,1765043466334,-243.78152352,8.767e-05,2]
[396541383,1765043466343,-500.0,8.767e-05,2]
[396541384,1765043466353,-500.0,8.767e-05,2]
[396541385,1765043466363,-500.0,8.767e-05,2]
[396541386,1765043466373,-522.18457858,8.767e-05,2]
[396541387,1765043466382,-850.67,8.767e-05,2]
[396541388,1765043466392,-1895.97,8.767e-05,2]
[396541389,1765043466402,-814.86,8.767e-05,2]
[396541390,1765043466411,-500.0,8.767e-05,2]
[396541391,1765043466423,-564.65,8.767e-05,2]
[396541392,1765043466432,-2227.75,8.767e-05,2]
[396541393,1765043466441,-500.0,8.767e-05,2]
[396541394,1765043466450,-500.0,8.767e-05,2]
[396541395,1765043466460,-500.0,8.767e-05,2]
[396541396,1765043466470,-736.82,8.767e-05,2]
[396541397,1765043466480,-823.15,8.767e-05,2]
[396541398,1765043466490,-500.0,8.767e-05,2]
[396541399,1765043466499,-1497.04,8.767e-05,2]
[396541400,1765043466509,-500.0,8.767e-05,2]
[396541401,1765043466518,-500.0,8.767e-05,2]
[396541402,1765043466528,-531.02,8.767e-05,2]
[396541403,1765043466537,-500.0,8.767e-05,2]
[396541404,1765043466547,-500.0,8.767e-05,2]
[396541405,1765043466557,-672.19,8.767e-05,2]
[396541406,1765043466566,-500.0,8.767e-05,2]
[396541407,1765043466575,-500.0,8.767e-05,2]
[396541408,1765043466585,-500.0,8.767e-05,2]
[396541409,1765043466595,-500.0,8.767e-05,2]
[396541410,1765043466604,-500.0,8.767e-05,2]
[396541411,1765043466614,-500.0,8.767e-05,2]
[396541412,1765043466623,-500.0,8.767e-05,2]
[396541413,1765043466632,-500.0,8.767e-05,2]
[396541414,1765043466641,-500.0,8.767e-05,2]
[396541415,1765043466650,-500.0,8.767e-05,2]
[396541416,1765043466660,-500.0,8.767e-05,2]
[396541417,1765043466670,-500.0,8.767e-05,2]
[396541418,1765043466679,-500.0,8.767e-05,2]
[396541419,1765043466688,-2129.74,8.767e-05,2]
[396541420,1765043466697,-500.0,8.767e-05,2]
[396541421,1765043466707,-500.0,8.767e-05,2]
[396541422,1765043466716,-500.0,8.767e-05,2]
[396541423,1765043466725,-500.0,8.767e-05,2]
[396541424,1765043466735,-744.58,8.767e-05,2]
[396541425,1765043466744,-500.0,8.767e-05,2]
[396541426,1765043466753,-500.0,8.767e-05,2]
[396541427,1765043466762,-2788.95,8.767e-05,2]
[396541428,1765043466772,-500.0,8.767e-05,2]
[396541429,1765043466781,-778.64,8.767e-05,2]
[396541430,1765043466790,-500.0,8.767e-05,2]
[396541431,1765043466799,-500.0,8.767e-05,2]
[396541432,1765043466809,-513.43,8.767e-05,2]
[396541433,1765043466819,-500.0,8.767e-05,2]
[396541434,1765043466828,-500.0,8.767e-05,2]
[396541435,1765043466837,-500.0,8.767e-05,2]
[396541436,1765043466847,-726.22,8.767e-05,2]
[396541437,1765043466856,-500.0,8.767e-05,2]
[396541438,1765043466865,-500.0,8.767e-05,2]
[396541439,1765043466876,-1010.34,8.767e-05,2]
[396541440,1765043466888,-508.98,8.767e-05,2]
[396541441,1765043466898,-500.0,8.767e-05,2]
[396541442,1765043466907,-500.0,8.767e-05,2]
[396541443,1765043466917,-183.42813929,8.767e-05,2]
[396541444,1765043466927,-500.0,8.767e-05,2]
[396541445,1765043466936,-500.0,8.767e-05,2]
[396541446,1765043466945,-500.0,8.767e-05,2]
[396541447,1765043466957,-500.0,8.767e-05,2]
[396541448,1765043466965,-500.0,8.767e-05,2]
[396541449,1765043466975,-500.0,8.767e-05,2]
[396541450,1765043466984,-500.0,8.767e-05,2]
[396541451,1765043466994,-500.0,8.767e-05,2]
[396541452,1765043467003,-500.0,8.767e-05,2]
[396541453,1765043467012,-500.0,8.767e-05,2]
[396541454,1765043467022,-500.0,8.767e-05,2]
[396541455,1765043467031,-1454.68,8.767e-05,2]
[396541456,1765043467041,-500.0,8.767e-05,2]
[396541457,1765043467050,-1046.32,8.767e-05,2]
[396541458,1765043467059,-500.0,8.767e-05,2]
[396541459,1765043467068,-500.0,8.767e-05,2]
[396541460,1765043467077,-804.48,8.767e-05,2]
[396541461,1765043467086,-500.0,8.767e-05,2]
[396541462,1765043467095,-500.0,8.767e-05,2]
[396541463,1765043467105,-500.0,8.767e-05,2]
[396541464,1765043467114,-1451.78,8.767e-05,2]
[396541465,1765043467123,-500.0,8.767e-05,2]
[396541466,1765043467133,-500.0,8.767e-05,2]
[396541467,1765043467142,-500.0,8.767e-05,2]
[396541468,1765043467152,-500.0,8.767e-05,2]
[396541469,1765043467162,-1478.49,8.767e-05,2]
[396541470,1765043467171,-443.4861377,8.767e-05,2]
[396541471,1765043467181,-500.0,8.767e-05,2]
[396541472,1765043467191,-1052.67,8.767e-05,2]
[396541473,1765043467200,-500.0,8.767e-05,2]
[396541474,1765043467209,-515.58,8.767e-05,2]
[396541475,1765043467218,-642.93,8.767e-05,2]
[396541476,1765043467228,-500.0,8.767e-05,2]
[396541477,1765043467237,-500.0,8.767e-05,2]
[396541478,1765043467246,-500.0,8.767e-05,2]
[396541479,1765043467255,-500.0,8.767e-05,2]
[396541480,1765043467264,-719.79,8.767e-05,2]
[396541481,1765043467274,-500.0,8.767e-05,2]
[396541482,1765043467284,-500.0,8.767e-05,2]
[396541483,1765043467293,-500.0,8.767e-05,2]
[396541484,1765043467421,-500.0,8.767e-05,2]
[396541485,1765043467431,-672.6,8.767e-05,2]
[396541486,1765043467441,-694.55,8.767e-05,2]
[396541487,1765043467450,-252.75505598,8.767e-05,2]
[396541488,1765043467459,-500.0,8.767e-05,2]
[396541489,1765043467469,-1810.93,8.767e-05,2]
[396541490,1765043467477,-500.0,8.767e-05,2]
[396541491,1765043467486,-500.0,8.767e-05,2]
[396541492,1765043467495,-547.43,8.767e-05,2]
[396541493,1765043467504,-500.0,8.767e-05,2]
[396541494,1765043467513,-500.0,8.767e-05,2]
[396541495,1765043467522,-500.0,8.767e-05,2]
[396541496,1765043467532,-500.0,8.767e-05,2]
[396541497,1765043467541,-500.0,8.767e-05,2]
[396541498,1765043467551,-500.0,8.767e-05,2]
[396541499,1765043467560,-500.0,8.767e-05,2]
[396541500,1765043467570,-500.0,8.767e-05,2]
[396541501,1765043467579,-500.0,8.767e-05,2]
[396541502,1765043467589,-500.0,8.767e-05,2]
[396541503,1765043467598,-500.0,8.767e-05,2]
[396541504,1765043467608,-500.0,8.767e-05,2]
[396541505,1765043467617,-1068.68,8.767e-05,2]
[396541506,1765043467626,-562.39745538,8.767e-05,2]
[396541507,1765043467636,-500.0,8.767e-05,2]
[396541508,1765043467646,-708.6,8.767e-05,2]
[396541509,1765043467655,-637.12,8.767e-05,2]
[396541510,1765043467665,-500.0,8.767e-05,2]
[396541511,1765043467674,-3239.38,8.767e-05,2]
[396541512,1765043467683,-500.0,8.767e-05,2]
[396541513,1765043467692,-791.57,8.767e-05,2]
[396541514,1765043467701,-1350.95,8.767e-05,2]
[396541515,1765043467710,-570.91,8.767e-05,2]
[396541516,1765043467719,-516.27,8.767e-05,2]
[396541517,1765043467729,-1560.3,8.767e-05,2]
[396541518,1765043467739,-500.0,8.767e-05,2]
[396541519,1765043467748,-534.65,8.767e-05,2]
[396541520,1765043467758,-526.88,8.767e-05,2]
[396541521,1765043467768,-500.0,8.767e-05,2]
[396541522,1765043467777,-2044.14,8.767e-05,2]
[396541523,1765043467786,-500.0,8.767e-05,2]
[396541524,1765043467795,-1194.26,8.767e-05,2]
[396541525,1765043467804,-500.0,8.767e-05,2]
[396541526,1765043467813,-500.0,8.767e-05,2]
[396541527,1765043467822,-500.0,8.767e-05,2]
[396541528,1765043467831,-1484.26,8.767e-05,2]
[396541529,1765043467840,-1072.59,8.767e-05,2]
[396541530,1765043467849,-3340.28,8.767e-05,2]
[396541531,1765043467858,-500.0,8.767e-05,2]
[396541532,1765043467868,-500.0,8.767e-05,2]
[396541533,1765043467880,-500.0,8.767e-05,2]
[396541534,1765043467890,-904.74,8.767e-05,2]
[396541535,1765043467899,-500.0,8.767e-05,2]
[396541536,1765043467909,-500.0,8.767e-05,2]
[396541537,1765043467918,-638.33945886,8.767e-05,2]
[396541538,1765043467927,-397.91830095,8.767e-05,2]
[396541539,1765043468526,500.0,8.219e-05,2]
[396541540,1765043468604,-300.0,8.382e-05,2]
[396541541,1765043468741,189.00447617,8.493e-05,2]
[396541542,1765043469258,-600.0,8.662e-05,2]
[396541543,1765043469268,-102.08169905,8.767e-05,2]
[396541544,1765043469278,-395.34679795,8.767e-05,2]
[396541545,1765043470146,500.0,8.137e-05,2]
[396541546,1765043471777,199010.99552383,8.119e-05,2]
[396541547,1765043472153,151.02,6.711e-05,2]
[396541548,1765043472794,151.02,6.644e-05,2]
[396541549,1765043474276,-302.05,7.031e-05,2]
[396541550,1765043474299,-362.08056858,7.351e-05,2]
[396541551,1765043476193,151.02,6.578e-05,2]
[396541552,1765043476797,238.37,6.6e-05,2]
[396541553,1765043477207,-238.37,6.8e-05,2]
[396541554,1765043477230,-6.01669127,6.9e-05,2]
[396541555,1765043480247,-232.35330873,6.9e-05,2]
[396541556,1765043480270,-38.70800879,7.1e-05,2]
[396541557,1765043483441,-199.66199121,7.029e-05,2]
[396541558,1765043483465,-180.14800879,7.1e-05,2]
[396541559,1765043487752,-19.51398242,7.1e-05,2]
[396541560,1765043488433,-238.37,7.2e-05,2]
[396541561,1765043488457,-42.84162481,7.351e-05,2]
[396541562,1765043504426,-48.14780661,7.351e-05,2]
[396541563,1765043507202,-238.37,7.4e-05,2]
[396541564,1765043507228,-238.37,7.5e-05,2]
[396541565,1765043507252,-604.1,7.67e-05,2]
[396541566,1765043507276,-238.37,7.7e-05,2]
[396541567,1765043507298,-238.37,7.8e-05,2]
[396541568,1765043507323,-238.37,8e-05,2]
[396541569,1765043507346,-238.37,8.1e-05,2]
[396541570,1765043507367,-300.0,8.118e-05,2]
[396541571,1765043507388,-356.329,8.118e-05,2]
[396541572,1765043507408,-189.3208857,8.118e-05,2]
[396541573,1765043507433,-597120.0301143,8.119e-05,2]
[396541574,1765043520750,10000.01,8.038e-05,2]
[396541575,1765043520785,10000.01,8.038e-05,2]
[396541576,1765043520814,10000.01,8.038e-05,2]
[396541577,1765043520846,4332.86099946,8.038e-05,2]
[396541578,1765043522693,300.0,8.118e-05,2]
[396541579,1765043526538,150.0,6.708e-05,2]
[396541580,1765043526932,236.09,7.027e-05,2]
[396541581,1765043527826,354.14,7.346e-05,2]
[396541582,1765043528250,472.19,7.666e-05,2]
[396541583,1765043528505,1014.55783695,8.038e-05,2]
[396541584,1765043528684,590.24,7.985e-05,2]
[396541585,1765043532666,-93868.97436187,8.119e-05,2]
[396541586,1765043532692,-1258.61935905,8.218e-05,2]
[396541587,1765043532717,-1258.61935905,8.218e-05,2]
[396541588,1765043532742,-1258.61935905,8.218e-05,2]
[396541589,1765043532769,-1258.61935905,8.218e-05,2]
[396541590,1765043532795,-1258.61935905,8.218e-05,2]
[396541591,1765043532820,-1258.61935905,8.218e-05,2]
[396541592,1765043532846,-1258.61935905,8.218e-05,2]
[396541593,1765043532871,-1258.61935905,8.218e-05,2]
[396541594,1765043532895,-1258.61935905,8.218e-05,2]
[396541595,1765043532925,-1258.61935905,8.218e-05,2]
[396541596,1765043532952,-1258.61935905,8.218e-05,2]
[396541597,1765043532978,-1258.61935905,8.218e-05,2]
[396541598,1765043533001,-1258.61935905,8.218e-05,2]
[396541599,1765043533025,-1258.61935905,8.218e-05,2]
[396541600,1765043533048,-1258.61935905,8.218e-05,2]
[396541601,1765043533071,-1258.61935905,8.218e-05,2]
[396541602,1765043533096,-1258.61935905,8.218e-05,2]
[396541603,1765043533120,-1258.61935905,8.218e-05,2]
[396541604,1765043533145,-1258.61935905,8.218e-05,2]
[396541605,1765043533168,-1258.61935905,8.218e-05,2]
[396541606,1765043533192,-1258.61935905,8.218e-05,2]
[396541607,1765043533217,-1258.61935905,8.218e-05,2]
[396541608,1765043533241,-1258.61935905,8.218e-05,2]
[396541609,1765043533265,-1258.61935905,8.218e-05,2]
[396541610,1765043533290,-1258.61935905,8.218e-05,2]
[396541611,1765043533315,-1258.61935905,8.218e-05,2]
[396541612,1765043533339,-1258.61935905,8.218e-05,2]
[396541613,1765043533363,-1258.61935905,8.218e-05,2]
[396541614,1765043533387,-1258.61935905,8.218e-05,2]
[396541615,1765043533412,-1258.61935905,8.218e-05,2]
[396541616,1765043533438,-1258.61935905,8.218e-05,2]
[396541617,1765043533462,-1258.61935905,8.218e-05,2]
[396541618,1765043533486,-1258.61935905,8.218e-05,2]
[396541619,1765043533510,-1258.61935905,8.218e-05,2]
[396541620,1765043533534,-1258.61935905,8.218e-05,2]
[396541621,1765043533559,-1258.61935905,8.218e-05,2]
[396541622,1765043533582,-1258.61935905,8.218e-05,2]
[396541623,1765043533606,-1258.61935905,8.218e-05,2]
[396541624,1765043533630,-1258.61935905,8.218e-05,2]
[396541625,1765043533654,-1258.61935905,8.218e-05,2]
[396541626,1765043533677,-1258.61935905,8.218e-05,2]
[396541627,1765043533700,-1258.61935905,8.218e-05,2]
[396541628,1765043533723,-1258.61935905,8.218e-05,2]
[396541629,1765043533746,-1258.61935905,8.218e-05,2]
[396541630,1765043533771,-1258.61935905,8.218e-05,2]
[396541631,1765043533794,-1258.61935905,8.218e-05,2]
[396541632,1765043533818,-1258.61935905,8.218e-05,2]
[396541633,1765043533841,-1258.61935905,8.218e-05,2]
[396541634,1765043533864,-1258.61935905,8.218e-05,2]
[396541635,1765043533888,-1258.61935905,8.218e-05,2]
[396541636,1765043533914,-1258.61935905,8.218e-05,2]
[396541637,1765043533938,-1258.61935905,8.218e-05,2]
[396541638,1765043533961,-1258.61935905,8.218e-05,2]
[396541639,1765043533984,-1258.61935905,8.218e-05,2]
[396541640,1765043534008,-1258.61935905,8.218e-05,2]
[396541641,1765043534032,-1258.61935905,8.218e-05,2]
[396541642,1765043534055,-1258.61935905,8.218e-05,2]
[396541643,1765043534080,-1258.61935905,8.218e-05,2]
[396541644,1765043534103,-1258.61935905,8.218e-05,2]
[396541645,1765043534128,-1258.61935905,8.218e-05,2]
[396541646,1765043534151,-1258.61935905,8.218e-05,2]
[396541647,1765043534175,-1314.1746962,8.218e-05,2]
[396541648,1765043534199,-1314.1746962,8.218e-05,2]
[396541649,1765043534223,-1314.1746962,8.218e-05,2]
[396541650,1765043534245,-1314.1746962,8.218e-05,2]
[396541651,1765043534268,-1314.1746962,8.218e-05,2]
[396541652,1765043534292,-1314.1746962,8.218e-05,2]
[396541653,1765043534317,-1314.1746962,8.218e-05,2]
[396541654,1765043534342,-1314.1746962,8.218e-05,2]
[396541655,1765043534366,-1314.1746962,8.218e-05,2]
[396541656,1765043534390,-1314.1746962,8.218e-05,2]
[396541657,1765043534413,-1314.1746962,8.218e-05,2]
[396541658,1765043534437,-1314.1746962,8.218e-05,2]
[396541659,1765043534463,-1314.1746962,8.218e-05,2]
[396541660,1765043534486,-1314.1746962,8.218e-05,2]
[396541661,1765043534510,-1314.1746962,8.218e-05,2]
[396541662,1765043534533,-1314.1746962,8.218e-05,2]
[396541663,1765043534556,-1314.1746962,8.218e-05,2]
[396541664,1765043534579,-1314.1746962,8.218e-05,2]
[396541665,1765043534604,-1314.1746962,8.218e-05,2]
[396541666,1765043534629,-1314.1746962,8.218e-05,2]
[396541667,1765043534652,-1314.1746962,8.218e-05,2]
[396541668,1765043534675,-1314.1746962,8.218e-05,2]
[396541669,1765043534699,-443.40141968,8.218e-05,2]
[396541670,1765043537707,764.24,6.6e-05,2]
[396541671,1765043538094,764.24,6.8e-05,2]
[396541672,1765043538363,764.24,6.9e-05,2]
[396541673,1765043553307,-764.24,7.1e-05,2]
[396541674,1765043569068,-764.24,7.2e-05,2]
[396541675,1765043577821,228.5353287,7.03e-05,2]
[396541676,1765043580415,529.91251883,7.2e-05,2]
[396541677,1765043585243,-206.8461797,7.563e-05,2]
[396541678,1765043598119,432.4,6.6e-05,2]
[396541679,1765043598403,432.4,6.8e-05,2]
[396541680,1765043598674,432.4,6.9e-05,2]
[396541681,1765043598980,432.4,7.1e-05,2]
[396541682,1765043599235,432.4,7.2e-05,2]
[396541683,1765043599525,432.4,7.4e-05,2]
[396541684,1765043599807,432.4,7.5e-05,2]
[396541685,1765043600136,432.4,7.7e-05,2]
[396541686,1765043600437,432.4,7.8e-05,2]
[396541687,1765043600990,-432.4,8e-05,2]
[396541688,1765043601062,432.4,8.1e-05,2]
[396541689,1765043605312,150.0,6.72e-05,2]
[396541690,1765043605722,246.81,7.04e-05,2]
[396541691,1765043606114,370.22,7.36e-05,2]
[396541692,1765043606541,493.63,7.68e-05,2]
[396541693,1765043606930,617.03,8e-05,2]
[396541694,1765043657128,722.29,6.6e-05,2]
[396541695,1765043657489,722.29,6.8e-05,2]
[396541696,1765043657788,722.29,6.9e-05,2]
[396541697,1765043658104,722.29,7.1e-05,2]
[396541698,1765043658427,722.29,7.2e-05,2]
[396541699,1765043658801,722.29,7.4e-05,2]
[396541700,1765043659135,722.29,7.5e-05,2]
[396541701,1765043659444,722.29,7.7e-05,2]
[396541702,1765043659845,722.29,7.8e-05,2]
[396541703,1765043660147,324.51,8e-05,2]
[396541704,1765043660170,397.78,8e-05,2]
[396541705,1765043660608,722.29,8.1e-05,2]
[396541706,1765043674217,722.2,6.612e-05,2]
[396541707,1765043683926,150.0,6.899e-05,2]
[396541708,1765043684356,199.02,7.228e-05,2]
[396541709,1765043684756,298.53,7.556e-05,2]
[396541710,1765043685135,398.03,7.885e-05,2]
[396541711,1765043687048,219.86778809,8.134e-05,2]
[396541712,1765043717020,548.94,6.6e-05,2]
[396541713,1765043717599,548.94,6.8e-05,2]
[396541714,1765043717723,548.94,6.9e-05,2]
[396541715,1765043718237,548.94,7.1e-05,2]
[396541716,1765043718413,548.94,7.2e-05,2]
[396541717,1765043718606,548.94,7.4e-05,2]
[396541718,1765043718817,548.94,7.5e-05,2]
[396541719,1765043719189,548.94,7.7e-05,2]
[396541720,1765043719563,548.94,7.8e-05,2]
[396541721,1765043720180,548.94,8e-05,2]
[396541722,1765043720797,548.94,8.1e-05,2]
[396541723,1765043739499,497.54,8.131e-05,2]
[396541724,1765043762250,2100.0,8.133e-05,2]
[396541725,1765043762643,150.0,6.9e-05,2]
[396541726,1765043763081,172.4,7.229e-05,2]
[396541727,1765043763480,258.6,7.558e-05,2]
[396541728,1765043763900,344.8,7.886e-05,2]
[396541729,1765043774185,428.17,6.6e-05,2]
[396541730,1765043774514,10.16,6.8e-05,2]
[396541731,1765043774539,418.01,6.8e-05,2]
[396541732,1765043775045,428.17,6.9e-05,2]
[396541733,1765043775723,428.17,7.1e-05,2]
[396541734,1765043775822,428.17,7.2e-05,2]
[396541735,1765043775929,428.17,7.4e-05,2]
[396541736,1765043776268,428.17,7.5e-05,2]
[396541737,1765043776585,428.17,7.7e-05,2]
[396541738,1765043776898,428.17,7.8e-05,2]
[396541739,1765043777161,428.17,8e-05,2]
[396541740,1765043777443,428.17,8.1e-05,2]
[396541741,1765043784483,2513.04674021,8.133e-05,2]
[396541742,1765043814736,1098.63861112,8.133e-05,2]
[396541743,1765043836562,600.0,8.132e-05,2]
[396541744,1765043839902,150.0,6.931e-05,2]
[396541745,1765043840314,150.0,7.261e-05,2]
[396541746,1765043840733,333.98,6.6e-05,2]
[396541747,1765043840796,223.25,7.591e-05,2]
[396541748,1765043840978,333.98,6.8e-05,2]
[396541749,1765043841102,297.67,7.921e-05,2]
[396541750,1765043841316,333.98,6.9e-05,2]
[396541751,1765043841659,333.98,7.1e-05,2]
[396541752,1765043842016,333.98,7.2e-05,2]
[396541753,1765043842390,333.98,7.4e-05,2]
[396541754,1765043842671,333.98,7.5e-05,2]
[396541755,1765043843180,333.98,7.7e-05,2]
[396541756,1765043843512,333.98,7.8e-05,2]
[396541757,1765043843790,333.98,8e-05,2]
[396541758,1765043844158,333.98,8.1e-05,2]
[396541759,1765043858566,333.79,6.612e-05,2]
[396541760,1765043859174,255.08941319,8.132e-05,2]
[396541761,1765043874493,600.0,8.132e-05,2]
[396541762,1765043888458,967.3528172,7.242e-05,2]
[396541763,1765043895598,253.82,6.6e-05,2]
[396541764,1765043895684,253.82,6.8e-05,2]
[396541765,1765043895937,253.82,6.9e-05,2]
[396541766,1765043896223,253.82,7.1e-05,2]
[396541767,1765043896588,253.82,7.2e-05,2]
[396541768,1765043896856,253.82,7.4e-05,2]
[396541769,1765043897203,253.82,7.5e-05,2]
[396541770,1765043897509,253.82,7.7e-05,2]
[396541771,1765043897574,718.51776961,8.132e-05,2]
[396541772,1765043897601,1081.48223039,8.132e-05,2]
[396541773,1765043897798,253.82,7.8e-05,2]
[396541774,1765043898113,253.82,8e-05,2]
[396541775,1765043898495,253.82,8.1e-05,2]
[396541776,1765043917682,150.0,6.927e-05,2]
[396541777,1765043918096,150.0,7.257e-05,2]
[396541778,1765043918673,191.91,7.587e-05,2]
[396541779,1765043918910,255.88,7.917e-05,2]
[396541780,1765043919808,1167.76310445,8.132e-05,2]
[396541781,1765043954704,197.98,6.6e-05,2]
[396541782,1765043954978,197.98,6.8e-05,2]
[396541783,1765043955375,197.98,6.9e-05,2]
[396541784,1765043955671,197.98,7.1e-05,2]
[396541785,1765043955940,197.98,7.2e-05,2]
[396541786,1765043956288,197.98,7.4e-05,2]
[396541787,1765043956674,197.98,7.5e-05,2]
[396541788,1765043956974,197.98,7.7e-05,2]
[396541789,1765043957309,197.98,7.8e-05,2]
[396541790,1765043957578,197.98,8e-05,2]
[396541791,1765043957855,197.98,8.1e-05,2]
[396541792,1765043996086,150.0,6.906e-05,2]
[396541793,1765043996491,150.0,7.235e-05,2]
[396541794,1765043996879,163.36,7.563e-05,2]
[396541795,1765043997293,217.81,7.892e-05,2]
[396541796,1765044016840,154.43,6.6e-05,2]
[396541797,1765044017111,154.43,6.8e-05,2]
[396541798,1765044017385,154.43,6.9e-05,2]
[396541799,1765044017693,154.43,7.1e-05,2]
[396541800,1765044018031,154.43,7.2e-05,2]
[396541801,1765044018337,154.43,7.4e-05,2]
[396541802,1765044018640,154.43,7.5e-05,2]
[396541803,1765044018954,154.43,7.7e-05,2]
[396541804,1765044019269,154.43,7.8e-05,2]
[396541805,1765044019640,154.43,8e-05,2]
[396541806,1765044019918,154.43,8.1e-05,2]
[396541807,1765044035781,154.37,6.612e-05,2]
[396541808,1765044072692,150.0,6.928e-05,2]
[396541809,1765044073108,150.0,7.258e-05,2]
[396541810,1765044073509,150.0,7.587e-05,2]
[396541811,1765044073904,183.13,7.917e-05,2]
[396541812,1765044075643,150.47,6.6e-05,2]
[396541813,1765044076443,150.47,6.8e-05,2]
[396541814,1765044077512,150.47,7e-05,2]
[396541815,1765044077845,150.47,7.2e-05,2]
[396541816,1765044078146,150.47,7.4e-05,2]
[396541817,1765044078419,143.98466516,7.6e-05,2]
[396541818,1765044078444,6.48533484,7.6e-05,2]
[396541819,1765044078721,150.47,7.8e-05,2]
[396541820,1765044079027,150.47,8e-05,2]
[396541821,1765044133583,150.47,6.6e-05,2]
[396541822,1765044134610,150.47,6.9e-05,2]
[396541823,1765044134969,150.47,7.1e-05,2]
[396541824,1765044135238,150.47,7.4e-05,2]
[396541825,1765044136151,150.47,7.6e-05,2]
[396541826,1765044136508,150.47,7.8e-05,2]
[396541827,1765044136811,150.47,8.1e-05,2]
[396541828,1765044145482,150.0,6.74e-05,2]
[396541829,1765044146220,150.0,7.061e-05,2]
[396541830,1765044146499,150.0,7.382e-05,2]
[396541831,1765044146891,150.9,7.703e-05,2]
[396541832,1765044147345,188.63,8.024e-05,2]
[396541833,1765044194582,150.47,6.6e-05,2]
[396541834,1765044195543,150.47,6.9e-05,2]
[396541835,1765044195904,150.47,7.3e-05,2]
[396541836,1765044196224,150.47,7.6e-05,2]
[396541837,1765044196499,150.47,7.9e-05,2]
[396541838,1765044200460,172.56045319,7.647e-05,2]
[396541839,1765044216266,150.0,6.742e-05,2]
[396541840,1765044216657,150.0,7.063e-05,2]
[396541841,1765044217547,150.0,7.384e-05,2]
[396541842,1765044218189,150.0,7.705e-05,2]
[396541843,1765044218604,150.0,8.026e-05,2]
[396541844,1765044224118,4419.2833779,7.272e-05,2]
[396541845,1765044250609,150.47,6.6e-05,2]
[396541846,1765044250852,150.47,7e-05,2]